Cogmind - Beta 15 @@@ ROGUE MODE // 2025.06.10 @ 17:14:33 Player: m1m1c Result: Destroyed by 9E-STU(R) with Subdweller Machine Gun Performance ------------- Evolutions (0) 0 Regions Visited (2) 400 Robots Destroyed (3) 15 Value Destroyed (30) 30 Prototype IDs (0) 0 Alien Tech Used (0) 0 Bonus (0) 0 TOTAL SCORE: 445 Bonus ------- None Cogmind --------- Core Integrity 0/250 Matter 300/300 Energy 100/100 System Corruption 0% Temperature Cool (6) Movement Treading (160) Location -10/Subcaves Parts ------- > --- POWER (1) -------- (None) > --- PROPULSION (2) --- Improved Treads > --- UTILITY (2) ------ Large Storage Unit > --- WEAPON (2) ------- Small Laser > --- INVENTORY (15) --- Light Treads Light Treads Medium Laser Light EM Pulse Cannon Light EM Pulse Cannon Peak State ------------ > --- POWER ------------ Ion Engine > --- PROPULSION ------- Improved Treads Improved Treads > --- UTILITY ---------- Large Storage Unit Subdweller Optics > --- WEAPON ----------- Small Laser Assault Rifle > --- INVENTORY -------- Light Treads Light Treads Medium Laser Light EM Pulse Cannon Light EM Pulse Cannon [Rating: 10] Favorites ----------- Power Light Ion Engine Engine Light Ion Engine Propulsion Wheel Treads Improved Treads Leg Aluminum Leg Wheel Wheel Utility Large Storage Unit Device Subdweller Optics Storage Large Storage Unit Weapon Small Laser Energy Gun Small Laser Ballistic Gun Assault Rifle Build | -11 -10 -10 ------- Run | Yrd Mat Sub Slots Evolved . | . . . Power . | . . . Propulsion . | . . . Utility . | . . . Weapon . | . . . Parts Attached 8 | . 4 4 Power 1 | . . 1 Engine 1 | . . 1 Core . | . . . Reactor . | . . . Propulsion 4 | . 2 2 Treads 2 | . . 2 Leg . | . . . Wheel 2 | . 2 . Hover . | . . . Flight . | . . . Utility 3 | . 2 1 Device 1 | . . 1 Storage 2 | . 2 . Processor . | . . . Hackware . | . . . Protection . | . . . Artifact . | . . . Weapon . | . . . Energy Gun . | . . . Energy Cannon . | . . . Ballistic Gun . | . . . Ballistic Cannon . | . . . Launcher . | . . . Special Weapon . | . . . Impact Weapon . | . . . Slashing Weapon . | . . . Piercing Weapon . | . . . Special Melee Weapon . | . . . Unidentified Prototypes . | . . . Parts Lost 7 | . . 7 Power 2 | . . 2 Propulsion 3 | . . 3 Utility 1 | . . 1 Weapon 1 | . . 1 Highest Loss Streak 6 | . . 6 To Critical Strikes . | . . . Average Backups 6 | 6 5 7 Power . | 1 1 . Propulsion 3 | 4 3 3 Utility . | . . . Weapon 2 | 1 1 3 Tool/Special . | . . . Unused Backups 13 | . 5 8 Power 2 | . 1 1 Propulsion 4 | . 2 2 Utility 1 | . . 1 Weapon 6 | . 2 4 Tool/Special . | . . . Average Slot Usage (%) 95 | . 89 99 Engine 14 | . 14 14 Treads 1 | . . 1 Leg 6 | . 18 . Wheel 19 | . 8 26 Device 6 | . . 9 Storage 18 | . 18 17 Energy Gun 14 | . 14 14 Ballistic Gun 14 | . 14 14 Peak Build Rating 10 | 6 8 10 Average Rating 7 | 6 6 8 On Entrance 6 | 6 6 8 Naked Turns . | . . . Heaviest Build 31 | 11 31 31 Greatest Support 46 | 20 20 46 Greatest Overweight (x) 2 | . 1 2 Average Overweight (x) . | . . . Largest Inventory Capacity 15 | 8 15 15 Average Capacity 13 | 8 10 15 Most Carried 9 | 6 8 9 Average Carried 6 | 6 5 7 Final Capacity 15 | 8 15 15 Final Carried 8 | 6 8 5 Class Distribution -------------------- 100% | Mutant Dominant Class ---------------- Mutant | -10/Materials Mutant | -10/Subcaves Resources | -11 -10 -10 ----------- Run | Yrd Mat Sub Matter Collected 292 | 200 . 92 Remotely . | . . . Salvage Created 40 | . . 40 Parts 3 | . . 3 Haulers Intercepted . | . . . Recyclers Shooed . | . . . Parts Field Recycled . | . . . Retrieved Matter . | . . . Parts Self-Destructed 4 | . . 4 Prevented . | . . . Kills | -11 -10 -10 ------- Run | Yrd Mat Sub Combat Hostiles Destroyed 3 | . . 3 Guns 3 | . . 3 Classes Destroyed 1 | . . 1 Swarmer 3 | . . 3 Best Kill Streak 3 | . . 3 Combat Bots Only 3 | . . 3 Max Kills in Single Turn 1 | . . 1 Gunslinging . | . . . Exploded . | . . . Melee . | . . . Uniques/NPCs Destroyed . | . . . Combat | -11 -10 -10 -------- Run | Yrd Mat Sub Hostile Shots Fired 93 | . . 93 Missed 30 | . . 30 Hits 63 | . . 63 Projectile 63 | . . 63 Critical Strikes 4 | . . 4 Damage Taken 1015 | . . 1015 Core 270 | . . 270 Absorbed by Shields . | . . . Core Remaining (%) 100 | 100 . . Volleys Fired 14 | . 6 8 Largest 2 | . 2 2 Hottest 60 | . 60 60 Shots Fired 27 | . 11 16 Gun 27 | . 11 16 Cannon . | . . . Launcher . | . . . Special . | . . . Kinetic 14 | . 6 8 Thermal 13 | . 5 8 Explosive . | . . . Electromagnetic . | . . . Robot Hit Streak 2 | . 1 2 Robot Miss Streak 4 | . 3 4 Penetration Max . | . . . Secondary Targets 2 | . . 2 Max Gunslinging Chain 1 | . . 1 Shots Hit Robots 11 | . 3 8 Core Hits 3 | . . 3 Critical Kills . | . . . Critical Parts Destroyed . | . . . Critical Strikes . | . . . Melee Attacks . | . . . Impact . | . . . Slashing . | . . . Piercing . | . . . Sneak Attacks . | . . . Combat Hostiles . | . . . Follow-up Attacks . | . . . Damage Inflicted 130 | . 33 97 Guns 130 | . 33 97 Cannons . | . . . Explosions . | . . . Melee . | . . . Ramming . | . . . Kinetic 75 | . 11 64 Thermal 55 | . 22 33 Explosive . | . . . Electromagnetic . | . . . Impact . | . . . Slashing . | . . . Piercing . | . . . Highest Corruption . | . . . Average Corruption . | . . . Corruption Purged . | . . . Corruption Blocked . | . . . Overload Shots . | . . . Overflow Damage . | . . . Projectiles . | . . . Explosions . | . . . Melee . | . . . Knockbacks . | . . . Impact . | . . . Kinetic . | . . . Secondary . | . . . Self-Inflicted Damage . | . . . Shots . | . . . Rammed . | . . . Targets Rammed . | . . . Kicked . | . . . Crushed . | . . . Highest Temperature 426 | . . 426 Average Temperature 219 | . . 219 Received Heat Transfer 709 | . . 709 Effects 1 | . . 1 Short Circuit 1 | . . 1 Siege Activations . | . . . Martial Activations . | . . . Shielding Activations . | . . . Robots Disrupted . | . . . Combat Hostiles . | . . . Robots Corrupted . | . . . Combat Hostiles . | . . . Parts Fried . | . . . Impact Corruptions . | . . . Robots Melted . | . . . Combat Hostiles . | . . . Parts Melted . | . . . Heat Transferred 125 | . 50 75 Parts Sabotaged . | . . . Parts Stolen . | . . . Parts Stripped . | . . . Power Chain Reactions . | . . . Alert | -11 -10 -10 ------- Run | Yrd Mat Sub Maximum Alert Level . | . . . Low Security (%) 100 | 100 100 . Level 1 . | . . . Level 2 . | . . . Level 3 . | . . . Level 4 . | . . . Level 5 . | . . . High Security . | . . . Max Security . | . . . Peak Influence . | . . . Initial . | . . . Average . | . . . Influence Increases 90 | . . 90 Destroy 0b10 Robot/C 60 | . . 60 Lose Combat Pursuer 30 | . . 30 Influence Decreases 90 | . . 90 Time Decay 80 | . . 80 Lost Part 10 | . . 10 Squads Dispatched . | . . . Investigation . | . . . Extermination . | . . . Reinforcement . | . . . Assault . | . . . Garrison . | . . . Intercept . | . . . Searches Triggered . | . . . Construction Impeded . | . . . Haulers Reinforced . | . . . Active Scanning Responses . | . . . Cargo Convoy Interrupts . | . . . Stealth | -11 -10 -10 --------- Run | Yrd Mat Sub Distress Signals . | . . . Communications Jammed . | . . . Distress Signals . | . . . Times Spotted 14 | . 2 12 Peak Tracking Total 6 | . 2 6 Tactical Retreats 1 | . . 1 Traps | -11 -10 -10 ------- Run | Yrd Mat Sub Traps Triggered . | . . . Indirectly . | . . . Trap Hack Attempts . | . . . Triggered . | . . . Disarmed . | . . . Reprogrammed . | . . . Reused . | . . . Traps Extracted . | . . . Installed . | . . . Triggered . | . . . Machines | -11 -10 -10 ---------- Run | Yrd Mat Sub Machines Disabled . | . . . Max in Single Turn . | . . . Machines Repaired . | . . . Machines Dismantled . | . . . Machines Sabotaged . | . . . Overloaded Fab Kills . | . . . Hacking | -11 -10 -10 --------- Run | Yrd Mat Sub Machines Accessed 1 | . . 1 Terminals . | . . . Fabricators . | . . . Repair Stations . | . . . Recycling Units . | . . . Scanalyzers . | . . . Garrison Access . | . . . Total Hacks 4 | . . 4 Successful 4 | . . 4 Failed . | . . . Catastrophic . | . . . Database Lockouts . | . . . Manual . | . . . Terminals . | . . . Fabricators . | . . . Repair Stations . | . . . Recycling Units . | . . . Scanalyzers . | . . . Garrison Access . | . . . Terminal Hacks 4 | . . 4 Record 4 | . . 4 Fabricator Hacks . | . . . Repair Station Hacks . | . . . Recycling Unit Hacks . | . . . Scanalyzer . | . . . Garrison Access Hacks . | . . . Unauthorized Hacks . | . . . Terminals . | . . . Fabricators . | . . . Repair Stations . | . . . Recycling Units . | . . . Scanalyzers . | . . . Garrison Access . | . . . Data Cores Recovered . | . . . Used . | . . . Hacking Detections . | . . . Full Trace Events . | . . . Feedback Events . | . . . Feedback Blocked . | . . . Robot Schematics Acquired . | . . . Robots Built . | . . . Authchips . | . . . Time . | . . . Total Robot Build Rating . | . . . Part Schematics Acquired . | . . . Parts Built . | . . . Authchips . | . . . Time . | . . . Total Part Build Rating . | . . . Parts Repaired . | . . . Time . | . . . Parts Recycled . | . . . Recycled Matter . | . . . Retrieved Matter . | . . . Retrieved Components . | . . . Parts Scanalyzed . | . . . Part Schematics Acquired . | . . . Parts Damaged . | . . . Bothacking | -11 -10 -10 ------------ Run | Yrd Mat Sub Used RIF Installer . | . . . Robots Hacked . | . . . Non-combat . | . . . Combat . | . . . Robot Hacks Applied . | . . . Relay Couplers Released . | . . . Fabnet Peak Effective % . | . . . Robots Rewired . | . . . Allies Hacked . | . . . Hacks Repelled . | . . . Allies | -11 -10 -10 -------- Run | Yrd Mat Sub Total Allies . | . . . Largest Group . | . . . Highest-Rated Group . | . . . Highest-Rated Ally . | . . . Total Orders . | . . . Ally Attacks . | . . . Total Damage . | . . . Kills . | . . . Allies Corrupted . | . . . Allies Melted . | . . . Intel | -11 -10 -10 ------- Run | Yrd Mat Sub Active Infowar (turns) 296 | . . 296 Optics 296 | . . 296 Robot Analysis Total . | . . . Derelict Logs Recovered . | . . . Drone Launches . | . . . Drone Recoveries . | . . . Exploration | -11 -10 -10 ------------- Run | Yrd Mat Sub Turns Passed 657 | 2 228 427 Spaces Moved 539 | 2 133 404 Core . | . . . Treads 20 | . . 20 Legs 83 | 2 81 . Wheels 436 | . 52 384 Hover . | . . . Flight . | . . . Fastest Speed 95 | 120 95 95 Average Speed 101 | 120 110 98 Slowest Speed 160 | 120 120 160 Overloaded Moves . | . . . Propulsion Burnouts . | . . . Robots Hopped . | . . . Potential Cave-ins . | . . . Cave-ins Triggered . | . . . Exploration Rate (%) 16 | 2 17 29 Regions Visited 2 Branch Regions 1 Pre-discovered Areas . | . . . Known Exits Taken . | . . . Unknown Exits Taken 2 | 1 1 . Scrap Searched 1 | . . 1 Spaces Dug . | . . . Terrain Destroyed . | . . . Melee . | . . . Projectile . | . . . AOE . | . . . Terrain Rammed . | . . . Walls Destroyed . | . . . Machines Disabled . | . . . Actions | -11 -10 -10 --------- Run | Yrd Mat Sub Total 623 | 1 203 419 Wait 54 | . 54 . Move 537 | 1 132 404 Hop . | . . . Pick Up 5 | . 4 1 Fast Attach 3 | . 2 1 Attach 5 | . 2 3 Detach . | . . . Swap . | . . . Drop 5 | . 3 2 Fire 14 | . 6 8 Melee . | . . . Ram . | . . . Kick . | . . . Crush . | . . . Escape Stasis . | . . . Rewire . | . . . Trap . | . . . Miscellaneous . | . . . Route ------- -11/Scrapyard -10/Materials -10/Subcaves (discovered 2 exits: [*Mat] / [*Rec]) History --------- Turn | Location | Event 1 | -11/Scrapyard | Discovered new exit (range 1) 3 | -11/Scrapyard | Entered Materials 225 | -10/Materials | Discovered new exit (range 6) 231 | -10/Materials | Entered Subcaves 232 | -10/Subcaves | Approached by a straggling Scientist 237 | -10/Subcaves | A swath of the cavern ceiling suddenly collapsed 314 | -10/Subcaves | Build established: Mutant 389 | -10/Subcaves | Discovered new exit (range 15) 417 | -10/Subcaves | Visited Clippyterm 420 | -10/Subcaves | Learned Factory garrison access intel 453 | -10/Subcaves | Discovered new exit (range 17) 636 | -10/Subcaves | Core integrity fell below 50% 657 | -10/Subcaves | Core integrity fell below 20% 658 | -10/Subcaves | Destroyed by 9E-STU(R) with Subdweller Machine Gun Last Messages --------------- Acquired 7 matter. Flight Unit fries itself beyond repair. Subatomizers dissect the Mak. Microdissipator Network. Flight Unit fries itself beyond repair. Acquired Mak. Microdissipator Network. Dropped Mak. Microdissipator Network. 8X-KRK(c): "I think it's somewhere west of here" Subatomizers dissect the Mak. Microdissipator Network. Lgt. Ion Engine destroyed. Wheel destroyed. Critical hit (Meltdown: +250). Sub. Optics destroyed. Critical hit (Meltdown: +270). Ion Engine broken. Overheating: Short circuit. Broken Ion Engine destroyed. Imp. Treads destroyed. Assault Rifle destroyed. Map ----- +----------------------------------------------------+ | ?????????????????# ####### # "##"# | | ?????????????????# #### """" | | ?????????????????## #?### #### | | ??????????????????## #???###??#"## # # | | ???####???????????## #???????# ?## # ### | | ???# #???????????# ##?????? ?? | | ???# #####??????## #####??????""""? ## ## # | | ???# ##????## #????????""""" ??###?### | | ???## ##??## ##???????" ?????????? | | ????# #### ##??????## ""??????????? | | ????# ## ## #???????###???????????? | | ????#### ## #?????????????????????? | | ?????## #### #????????????????????? | | ?????# #??# ##????????????????????? | | ????## ##?## ##?????????????????????? | | ????# #???###??????????????????????? | | ????# ### ####????????????????????????????? | | ????# #?# ##?????????? "???????????????????? | | ????# ##### #######????""#???????????????????? | | ????##???# R ## ###?#""#???????????????????? | | ?????????##### R ##"""##??????????????????? | | ?????????????## """"##?????????????????? | | ????????????###R "" ""?????????????????? | | ??????? "" """"????????????????? | | ??????### #### """"""""??????????????? | | ????????### #??## @ " "R"??????????????? | | ??????????########???# "R ""????????????? | | ?????????????????????###### "#"##"????????????? | | ???????????????????????????######????????????????? | | ?????????????????????????????????????????????????? | | ?????????????????????????????????????????????????? | | ?????????????????????????????????????????????????? | | ?????????????????????????????????????????????????? | | ?????????????????????????????????????????????????? | | ?????????????????????????????????????????????????? | | ?????????????????????????????????????????????????? | | ?????????????????????????????????????????????????? | | ?????????????????????????????????????????????????? | | ?????????????????????????????????????????????????? | | ?????????????????????????????????????????????????? | | ?????????????????????????????????????????????????? | | ?????????????????????????????????????????????????? | | ?????????????????????????????????????????????????? | | ?????????????????????????????????????????????????? | | ?????????????????????????????????????????????????? | | ?????????????????????????????????????????????????? | | ?????????????????????????????????????????????????? | | ?????????????????????????????????????????????????? | | ?????????????????????????????????????????????????? | | ?????????????????????????????????????????????????? | +----------------------------------------------------+ Best States ------------- Heat Dissipation 25 Energy Generation 10 Energy Capacity 250 Matter Stores 300 Matter Capacity 300 Sight Range 21 Terrain Scan Density 10 Evasion (%) 55 Recoil Reduction 2 Item Schematics ----------------- None Robot Schematics ------------------ None Fabricated ------------ Nothing Repaired ---------- Nothing Alien Tech Used ----------------- None Achievements -------------- None Challenges ------------ None Game ------ Seed SalvageHardlightKatana Manual? 0 Play Time 00:08:56 Cumulative 53.4 hours Start 2025.06.10 @ 17:08:13 End 2025.06.10 @ 17:14:33 Sessions 1 Manual Loads 0 Difficulty Rogue Special Mode None Game No. 109 Rogue 106 Adventurer 0 Explorer 3 Win Type - Total 0 Types 0/0/0/0/0/0/0/0/0/0 Lore% 12 Gallery% 33 Achievement% 32 Wizard Run 0 Options --------- Layout 1 ASCII 1 Keyboard 0 Movement Arrows Keybinds 1 Fullscreen 1 Font 18/SmallcapsGlow Map View 50x40 Zoom Use 0% Tactical HUD 0 Map Filters NONE Filters NONE Steam 1 RUN: d3df9d5d-ec00-4f5a-9268-b54096a78b8e